Cogmind - Beta 10.1 @@@ ROGUE MODE // 2021.07.07 @ 03:44:38 Player: W-ALTER Result: Destroyed by as-16543 with Assembled Rifle Performance ------------- Evolutions (0) 0 Regions Visited (2) 400 Robots Destroyed (3) 15 Value Destroyed (47) 47 Prototype IDs (0) 0 Alien Tech Used (0) 0 Bonus (0) 0 TOTAL SCORE: 462 Bonus ------- None Cogmind --------- Core Integrity 0/250 Matter 281/300 Energy 84/100 System Corruption 9% Temperature Cool (0) Movement Core (200) Ox3 Location -10/Mines Parts ------- > --- POWER (1) -------- (None) > --- PROPULSION (2) --- (None) > --- UTILITY (2) ------ Small Storage Unit > --- WEAPON (2) ------- Assault Rifle Rocket Launcher > --- INVENTORY (6) ---- Small Storage Unit Terrain Scanner Peak State ------------ > --- POWER ------------ Ion Engine > --- PROPULSION ------- Wheel Compact Wheel > --- UTILITY ---------- Small Storage Unit ECM Suite > --- WEAPON ----------- Assault Rifle Light Assault Rifle > --- INVENTORY -------- Seismic Analyzer [Rating: 7] Favorites ----------- Power Ion Engine Engine Ion Engine Propulsion Wheel Wheel Wheel Utility Small Storage Unit Device ECM Suite Storage Small Storage Unit Weapon Assault Rifle Ballistic Gun Assault Rifle Launcher Rocket Launcher Build | -11 -10 -10 ------- Run | Scr Mat Min Slots Evolved . | . . . Power . | . . . Propulsion . | . . . Utility . | . . . Weapon . | . . . Parts Attached 11 | 6 1 4 Power 1 | 1 . . Engine 1 | 1 . . Core . | . . . Reactor . | . . . Propulsion 2 | 2 . . Treads . | . . . Leg . | . . . Wheel 2 | 2 . . Hover . | . . . Flight . | . . . Utility 5 | 1 1 3 Device 2 | . 1 1 Storage 3 | 1 . 2 Processor . | . . . Hackware . | . . . Protection . | . . . Artifact . | . . . Weapon 3 | 2 . 1 Energy Gun . | . . . Energy Cannon . | . . . Ballistic Gun 2 | 2 . . Ballistic Cannon . | . . . Launcher 1 | . . 1 Special Weapon . | . . . Impact Weapon . | . . . Slashing Weapon . | . . . Piercing Weapon . | . . . Special Melee Weapon . | . . . Unidentified Prototypes . | . . . Parts Lost 6 | . . 6 Power 1 | . . 1 Propulsion 2 | . . 2 Utility 2 | . . 2 Weapon 1 | . . 1 Highest Loss Streak 6 | . . 6 Average Slot Usage (%) 96 | . 99 89 Engine 13 | . 14 11 Wheel 27 | . 28 25 Device 14 | . 13 15 Storage 12 | . 14 10 Ballistic Gun 27 | . 28 25 Naked Turns . | . . . Heaviest Build 13 | 12 13 13 Greatest Support 26 | 26 26 26 Greatest Overweight (x) 1 | 1 . . Average Overweight (x) . | . . . Largest Inventory Capacity 6 | 6 6 6 Average Capacity 5 | 5 6 5 Most Carried 5 | 5 2 3 Average Carried . | 1 . 1 Final Capacity 6 | 6 6 6 Final Carried 2 | 1 1 2 Class Distribution -------------------- 100% | Mutant Dominant Class ---------------- Mutant | -10/Materials Mutant | -10/Mines Resources | -11 -10 -10 ----------- Run | Scr Mat Min Matter Collected 331 | 272 42 17 Remotely . | . . . Salvage Created 161 | 114 47 . Parts 7 | 5 2 . Haulers Intercepted . | . . . Recyclers Shooed 1 | . 1 . Parts Field Recycled . | . . . Retrieved Matter . | . . . Parts Self-Destructed . | . . . Prevented . | . . . Kills | -11 -10 -10 ------- Run | Scr Mat Min Combat Hostiles Destroyed 1 | . 1 . Guns 1 | . 1 . Classes Destroyed 3 | 2 1 . Tunneler 1 | 1 . . Recycler 1 | 1 . . Grunt 1 | . 1 . Best Kill Streak 2 | 2 1 . Combat Bots Only 1 | . 1 . Max Kills in Single Turn 1 | 1 1 . Gunslinging . | . . . Exploded . | . . . Melee . | . . . Uniques/NPCs Destroyed . | . . . Combat | -11 -10 -10 -------- Run | Scr Mat Min Damage Taken 783 | . 137 646 Core 251 | . 44 207 Absorbed by Shields . | . . . Core Remaining (%) 100 | 100 . . Volleys Fired 14 | 3 9 2 Largest 2 | 2 2 2 Hottest 53 | 40 40 53 Shots Fired 28 | 6 18 4 Gun 27 | 6 18 3 Cannon . | . . . Launcher 1 | . . 1 Special . | . . . Kinetic 27 | 6 18 3 Thermal . | . . . Explosive 1 | . . 1 Electromagnetic . | . . . Robot Hit Streak 3 | 2 2 3 Robot Miss Streak 3 | 1 3 1 Penetration Max . | . . . Secondary Targets . | . . . Shots Hit Robots 12 | 3 6 3 Core Hits 12 | 4 2 6 Critical Hits . | . . . Critical Kills . | . . . Critical Parts Destroyed . | . . . Melee Attacks . | . . . Impact . | . . . Slashing . | . . . Piercing . | . . . Sneak Attacks . | . . . Combat Hostiles . | . . . Follow-up Attacks . | . . . Damage Inflicted 425 | 58 74 293 Guns 154 | 58 66 30 Cannons . | . . . Explosions 252 | . . 252 Melee . | . . . Ramming 19 | . 8 11 Kinetic 154 | 58 66 30 Thermal . | . . . Explosive 252 | . . 252 Electromagnetic . | . . . Impact . | . . . Slashing . | . . . Piercing . | . . . Highest Corruption 9 | . . 9 Average Corruption 9 | . . 9 Corruption Purged . | . . . Effects 1 | . . 1 Energy Discharges 1 | . . 1 Overload Shots . | . . . Overflow Damage . | . . . Projectiles . | . . . Explosions . | . . . Melee . | . . . Knockbacks . | . . . Impact . | . . . Kinetic . | . . . Secondary . | . . . Self-Inflicted Damage 55 | . 4 51 Shots 1 | . . 1 Rammed 4 | . 1 3 Targets Rammed 4 | . 1 3 Kicked . | . . . Crushed . | . . . Highest Temperature 6 | . 6 . Average Temperature 6 | . 6 . Received Heat Transfer 72 | . 72 . Siege Activations . | . . . Robots Corrupted . | . . . Combat Hostiles . | . . . Parts Fried . | . . . Impact Corruptions . | . . . Robots Melted . | . . . Combat Hostiles . | . . . Parts Melted . | . . . Heat Transferred . | . . . Parts Sabotaged . | . . . Parts Stolen . | . . . Parts Stripped . | . . . Power Chain Reactions . | . . . Missiles Intercepted . | . . . Alert | -11 -10 -10 ------- Run | Scr Mat Min Peak Influence 79 | 10 79 30 Initial 30 | . 6 30 Average 31 | 2 44 23 Maximum Alert Level . | . . . Low Security (%) 100 | 100 100 100 Level 1 . | . . . Level 2 . | . . . Level 3 . | . . . Level 4 . | . . . Level 5 . | . . . High Security . | . . . Max Security . | . . . Squads Dispatched 3 | . 3 . Investigation 3 | . 3 . Extermination . | . . . Reinforcement . | . . . Assault . | . . . Garrison . | . . . Intercept . | . . . Construction Impeded . | . . . Haulers Reinforced . | . . . Stealth | -11 -10 -10 --------- Run | Scr Mat Min Distress Signals . | . . . Communications Jammed . | . . . Distress Signals . | . . . Times Spotted 27 | . 4 23 Peak Tracking Total 18 | . 2 18 Tactical Retreats 3 | . . 3 Traps | -11 -10 -10 ------- Run | Scr Mat Min Traps Triggered . | . . . Indirectly . | . . . Trap Hack Attempts . | . . . Triggered . | . . . Disarmed . | . . . Reprogrammed . | . . . Reused . | . . . Traps Extracted . | . . . Installed . | . . . Triggered . | . . . Machines | -11 -10 -10 ---------- Run | Scr Mat Min Machines Disabled . | . . . Max in Single Turn . | . . . Machines Sabotaged . | . . . Garrisons Compromised . | . . . Overloaded Fab Kills . | . . . Fab Network Shutdowns . | . . . Hacking | -11 -10 -10 --------- Run | Scr Mat Min Machines Accessed 4 | . 4 . Terminals 4 | . 4 . Fabricators . | . . . Repair Stations . | . . . Recycling Units . | . . . Scanalyzers . | . . . Garrison Access . | . . . Total Hacks 21 | . 21 . Successful 14 | . 14 . Failed 6 | . 6 . Catastrophic . | . . . Database Lockouts 1 | . 1 . Manual 2 | . 2 . Terminals 21 | . 21 . Fabricators . | . . . Repair Stations . | . . . Recycling Units . | . . . Scanalyzers . | . . . Garrison Access . | . . . Terminal Hacks 14 | . 14 . Record 9 | . 9 . Robot Analysis 1 | . 1 . Emergency Access Points 1 | . 1 . Alert Level 1 | . 1 . Locate Traps 1 | . 1 . Zone Layout 1 | . 1 . Fabricator Hacks . | . . . Repair Station Hacks . | . . . Recycling Unit Hacks . | . . . Scanalyzer . | . . . Garrison Access Hacks . | . . . Unauthorized Hacks . | . . . Terminals . | . . . Fabricators . | . . . Repair Stations . | . . . Recycling Units . | . . . Scanalyzers . | . . . Garrison Access . | . . . Data Cores Recovered . | . . . Used . | . . . Hacking Detections 4 | . 4 . Full Trace Events 3 | . 3 . Feedback Events . | . . . Feedback Blocked . | . . . Robot Schematics Acquired . | . . . Robots Built . | . . . Matter . | . . . Time . | . . . Total Robot Build Rating . | . . . Part Schematics Acquired . | . . . Parts Built . | . . . Matter . | . . . Time . | . . . Total Part Build Rating . | . . . Parts Repaired . | . . . Time . | . . . Parts Recycled . | . . . Recycled Matter . | . . . Retrieved Matter . | . . . Retrieved Components . | . . . Parts Scanalyzed . | . . . Part Schematics Acquired . | . . . Parts Damaged . | . . . Bothacking | -11 -10 -10 ------------ Run | Scr Mat Min Used RIF Installer . | . . . Robots Hacked . | . . . Non-combat . | . . . Combat . | . . . Robot Hacks Applied . | . . . Relay Couplers Released . | . . . Robots Rewired . | . . . Allies Hacked . | . . . Hacks Repelled . | . . . Allies | -11 -10 -10 -------- Run | Scr Mat Min Total Allies . | . . . Largest Group . | . . . Highest-Rated Group . | . . . Highest-Rated Ally . | . . . Total Orders . | . . . Ally Attacks . | . . . Total Damage . | . . . Kills . | . . . Allies Corrupted . | . . . Allies Melted . | . . . Intel | -11 -10 -10 ------- Run | Scr Mat Min Robot Analysis Total 1 | . 1 . Derelict Logs Recovered 1 | . . 1 Drone Launches . | . . . Drone Recoveries . | . . . Exploration | -11 -10 -10 ------------- Run | Scr Mat Min Turns Passed 436 | 68 253 115 Spaces Moved 413 | 57 249 107 Core 16 | 16 . . Treads . | . . . Legs . | . . . Wheels 397 | 41 249 107 Hover . | . . . Flight . | . . . Fastest Speed 50 | 50 90 80 Average Speed 88 | 84 90 88 Slowest Speed 100 | 100 90 90 Overloaded Moves . | . . . Propulsion Burnouts . | . . . Robots Hopped . | . . . Cave-ins Triggered . | . . . Exploration Rate (%) 27 | 4 47 32 Regions Visited 2 Branch Regions 1 Pre-discovered Areas . | . . . Known Exits Taken . | . . . Unknown Exits Taken 2 | 1 1 . Scrap Searched 1 | . . 1 Spaces Dug . | . . . Terrain Destroyed 9 | . . 9 Melee . | . . . Projectile . | . . . AOE 9 | . . 9 Terrain Rammed . | . . . Walls Destroyed . | . . . Machines Disabled . | . . . Actions | -11 -10 -10 --------- Run | Scr Mat Min Total 460 | 71 262 127 Wait 6 | . . 6 Move 411 | 56 248 107 Hop . | . . . Pick Up 11 | 6 2 3 Fast Attach 1 | 1 . . Attach 10 | 5 1 4 Detach 2 | . . 2 Swap . | . . . Drop 1 | . 1 . Fire 14 | 3 9 2 Melee . | . . . Ram 4 | . 1 3 Kick . | . . . Crush . | . . . Escape Stasis . | . . . Rewire . | . . . Trap . | . . . Miscellaneous . | . . . Route ------- -11/Scrapyard -10/Materials (discovered 2 exits: [*Mat] / [*Min]) -10/Mines History --------- Turn | Location | Event 6 | -11/Scrapyard | Discovered new exit (range 15) 69 | -11/Scrapyard | Entered Materials 108 | -10/Materials | Central database locked down 240 | -10/Materials | Discovered new exit (range 11) 295 | -10/Materials | Discovered new exit (range 7) 308 | -10/Materials | Build established: Mutant 322 | -10/Materials | Entered Mines 354 | -10/Mines | Learned Materials emergency access door positions 370 | -10/Mines | Assembled infested the area 417 | -10/Mines | Core integrity fell below 50% 431 | -10/Mines | Received a Rocket Launcher from a helpful Derelict 437 | -10/Mines | Core integrity fell below 20% 437 | -10/Mines | Destroyed by as-16543 with Assembled Rifle Last Messages --------------- 00413_ Knocked back. 00415_ Lgt. Assault Rifle destroyed. 00419_ Acquired Sml. Storage Unit. 00419_ Com. Wheel destroyed. 00423_ as-42798 destroyed. 00425_ A derelict emerges from the shadows. 00425_ System corrupted: Energy discharge (-40). 00426_ 5I-JNM(g): "Some of my friends down here think you need a mining laser when you travel the depths." 00427_ 5I-JNM(g): "They are crazy." 00428_ 5I-JNM(g): "Everyone knows a good old rocket launcher goes a long way." 00429_ 5I-JNM(g): "Need to get rid of a swarm? Done. Need a big hole in the wall? Done." 00430_ 5I-JNM(g): "Need a small hole in the wall? Leave that to the mining laser wimps, I say!" 00431_ 5I-JNM(g): "Would you like a rocket launcher? I know I would if I were you, so I'm going to lend you mine." 00431_ 5I-JNM(g) slips back into the shadows. 00435_ Acquired Rocket Launcher. 00437_ Wheel destroyed. Map ----- +----------------------------------------------------+ | ?????????????????????????????????????????????????? | | ?????????????????????????????????????????????????? | | ?????????????????????????????????????????????????? | | ?????????????????????????????????????????????????? | | ?????????????????????????????????????????????????? | | ?????????????????????????????????????????????????? | | ?????????????????????????????????????????????????? | | ?????????????????????????????????????????????????? | | ?????????????????????????????????????????????????? | | ?????????????????????????????????????????????????? | | ?????????????????????????????????????????????????? | | ?????????????????????????????????????????????????? | | ?????????????????? ??????????????????????????????? | | ????????????????? ?????????????????????????????? | | ?????????????????? ??????????####???????????????? | | ??????????????????# ????????# ????????????????? | | ??????????????????# ???????# ??????? ????????? | | ??????????????????? ?????# ??????? ????????? | | ???????????????????# #???# ???????# ????????? | | ???????????????????# a#?## t????????# #???????? | | ????????????????????# ## #????????# #??????## | | ?????????????????????# #????????# #?????## | | ?????????????????????# #????????# #????## | | ?????????????????????# #????????# #?#### | | ?????????????????????# tk #????????# ### | | ?????????????????????# @a #????????# ## | | ?????????????????????# aa a ###?????# ## # | | ?????????????????????## a #####?# # # | | ??????????????????????# aa #?# # | | ??????????????????????## aa### # | | ???????????????????????## ### ### | | ????????????????????????# #?## #?#### !% | | ??????????????????????? #??# #????## % | | ?????????????????????? #??# #?????## #### | | ?????????????????????#######??# #??????####??## | | ??????????????????????????????# #?????????????##% | | ?????????????????????????????? #??????????????#%# | | ??????????????????????????????# #??????????????# # | | ??????????????????????????????? #??????????????# # | | ??????????????????????????????? #??????????????# # | | ??????????????????????????????? ???????????????# # | | ??????????????????????????????? ???????????????# # | | ??????????????????????????????? ???????????????# # | | ??????????????????????????????? ???????????????# # | | ???????????????????????????????????????????????# # | | ???????????????????????????????????????????????# # | | ???????????????????????????????????????????????# # | | ???????????????????????????????????????????????# | | ???????????????????????????????????????????????# | | ???????????????????????????????????????????????### | +----------------------------------------------------+ Best States ------------- Heat Dissipation 25 Energy Generation 10 Energy Capacity 250 Matter Stores 300 Matter Capacity 300 Sight Range 16 Terrain Scan Range 14 Terrain Scan Density 10 ECM Strength 1 Evasion (%) 50 Item Schematics ----------------- None Robot Schematics ------------------ None Fabricated ------------ Nothing Alien Tech Used ----------------- None Achievements -------------- Slippery One Challenges ------------ None Game ------ Seed DefenseTachyonCompressor Manual? 0 Play Time 00:09:21 Cumulative 6.9 hours Start 2021.07.07 @ 03:34:03 End 2021.07.07 @ 03:44:38 Sessions 1 Manual Loads 0 Difficulty Rogue Special Mode None Game No. 17 Rogue 17 Adventurer 0 Explorer 0 Win Type - Total 0 Types 0/0/0/0/0/0/0/0/0 Lore% 19 Gallery% 12 Achievement% 16 Wizard Run 0 Options --------- ASCII 0 Keyboard 0 Movement Mouse Keybinds 0 Fullscreen 1 Font 12/Smallcaps Map View 83x54 Tactical HUD 1 Map Filters NONE Filters NONE Steam X RUN: eafc75d5-e146-4d1b-9c88-4f0bae65b7c5